Cogmind - Beta 16.1 @@@ ROGUE MODE // 2026.02.11 @ 14:29:10 Player: Jiber Result: Destroyed by 2O-SA5(R) with Subdweller Beam Cannon Performance ------------- Evolutions (0) 0 Regions Visited (2) 400 Robots Destroyed (17) 85 Value Destroyed (503) 503 Prototype IDs (0) 0 Alien Tech Used (0) 0 Bonus (-17) -17 TOTAL SCORE: 971 Bonus ------- Friendly Fire -17 Cogmind --------- Core Integrity 0/250 Matter 150/300 Energy 200/200 System Corruption 5% Temperature Cool (9) Movement Walking (190) Ox1 Location -10/Subcaves Parts ------- > --- POWER (1) -------- Subdweller Power Source > --- PROPULSION (2) --- Aluminum Leg > --- UTILITY (2) ------ Small Storage Unit Signal Interpreter > --- WEAPON (2) ------- Beam Cannon > --- INVENTORY (8) ---- Aluminum Leg Aluminum Leg Small Matter Pod (50) ECM Suite Hacking Suite Subdweller Laser Subdweller Laser Battle Rifle Peak State ------------ > --- POWER ------------ Subdweller Power Source > --- PROPULSION ------- Aluminum Leg Makeshift Leg > --- UTILITY ---------- Small Storage Unit Signal Interpreter > --- WEAPON ----------- Beam Cannon Subdweller Shrapnel Launcher > --- INVENTORY -------- Aluminum Leg Aluminum Leg Small Matter Pod ECM Suite Hacking Suite Subdweller Laser Subdweller Laser Light Assault Rifle [Rating: 13] Favorites ----------- Power Light Ion Engine Engine Light Ion Engine Propulsion Aluminum Leg Leg Aluminum Leg Wheel Compact Wheel Utility Small Storage Unit Storage Small Storage Unit Processor Signal Interpreter Weapon Beam Cannon Energy Gun Small Laser Energy Cannon Beam Cannon Ballistic Gun Assault Rifle Launcher Subdweller Shrapnel Launcher Build | -11 -10 -10 ------- Run | Yrd Mat Sub Slots Evolved . | . . . Power . | . . . Propulsion . | . . . Utility . | . . . Weapon . | . . . Parts Attached 20 | 6 8 6 Power 4 | 1 1 2 Engine 4 | 1 1 2 Core . | . . . Reactor . | . . . Propulsion 5 | 2 1 2 Treads . | . . . Leg 3 | . 1 2 Wheel 2 | 2 . . Hover . | . . . Flight . | . . . Utility 2 | 1 1 . Device . | . . . Storage 1 | 1 . . Processor 1 | . 1 . Hackware . | . . . Protection . | . . . Artifact . | . . . Weapon 9 | 2 5 2 Energy Gun 4 | 1 3 . Energy Cannon 3 | . 2 1 Ballistic Gun 1 | 1 . . Ballistic Cannon . | . . . Launcher 1 | . . 1 Special Weapon . | . . . Impact Weapon . | . . . Slashing Weapon . | . . . Piercing Weapon . | . . . Special Melee Weapon . | . . . Unidentified Prototypes . | . . . Parts Lost 7 | . 3 4 Power 1 | . . 1 Propulsion 2 | . 1 1 Utility . | . . . Weapon 4 | . 2 2 Highest Loss Streak 2 | . 1 2 To Critical Strikes . | . . . Average Backups 6 | 3 6 7 Power . | . 1 . Propulsion 2 | 1 2 2 Utility 2 | . 1 3 Weapon 1 | . . 2 Tool/Special . | . . . Unused Backups 10 | . 1 9 Power . | . . . Propulsion 3 | . 1 2 Utility 3 | . . 3 Weapon 4 | . . 4 Tool/Special . | . . . Average Slot Usage (%) 92 | . 83 99 Engine 12 | . 11 13 Leg 18 | . 5 27 Wheel 8 | . 21 . Storage 14 | . 14 14 Processor 9 | . 3 14 Energy Gun 6 | . 14 1 Energy Cannon 15 | . 9 20 Ballistic Gun 1 | . 4 . Launcher 3 | . . 5 Peak Build Rating 13 | 6 8 13 Average Rating 7 | 4 6 8 On Entrance 4 | . 6 8 Avg Prop Armor Cover (%) 3 | . 3 . Naked Turns . | . . . Heaviest Build 21 | 14 14 21 Greatest Support 32 | 32 32 30 Greatest Overweight (x) 2 | 2 1 1 Average Overweight (x) . | . . . Largest Inventory Capacity 8 | 8 8 8 Average Capacity 7 | 6 8 8 Most Carried 8 | 5 8 8 Average Carried 7 | 3 6 7 Final Capacity 8 | 8 8 8 Final Carried 8 | 4 8 8 Class Distribution -------------------- 100% | Mutant Dominant Class ---------------- Mutant | -10/Materials Mutant | -10/Subcaves Resources | -11 -10 -10 ----------- Run | Yrd Mat Sub Matter Collected 534 | 228 198 108 Remotely . | . . . Salvage Created 640 | . 389 251 Parts 33 | . 20 13 Haulers Intercepted . | . . . Recyclers Shooed 1 | . 1 . Parts Field Recycled . | . . . Retrieved Matter . | . . . Parts Self-Destructed 12 | . . 12 Prevented . | . . . Parts Restored . | . . . Kills | -11 -10 -10 ------- Run | Yrd Mat Sub Combat Hostiles Destroyed 12 | . 5 7 Guns 4 | . 4 . Cannons 5 | . 1 4 AOE 2 | . . 2 Classes Destroyed 5 | . 4 1 Worker 2 | . 2 . Recycler 1 | . 1 . Operator 2 | . 2 . Grunt 5 | . 5 . Subdweller 7 | . . 7 Best Kill Streak 3 | . 3 2 Combat Bots Only 2 | . 2 2 Max Kills in Single Turn 1 | . 1 1 Gunslinging . | . . . Exploded 1 | . . 1 Melee . | . . . Uniques/NPCs Destroyed . | . . . Combat | -11 -10 -10 -------- Run | Yrd Mat Sub Hostile Shots Fired 79 | . 42 37 Missed 16 | . 5 11 Hits 63 | . 37 26 Projectile 63 | . 37 26 Damage Taken 1134 | . 449 685 Core 254 | . 154 100 Absorbed by Shields . | . . . Core Remaining (%) 100 | 100 . . Volleys Fired 61 | . 39 22 Largest 2 | . 2 2 Hottest 120 | . 120 120 Shots Fired 112 | . 69 43 Gun 57 | . 56 1 Cannon 47 | . 13 34 Launcher 8 | . . 8 Special . | . . . Kinetic 29 | . 21 8 Thermal 76 | . 41 35 Explosive . | . . . Electromagnetic 7 | . 7 . Robot Hit Streak 19 | . 19 11 Robot Miss Streak 4 | . 4 2 Penetration Max . | . . . Secondary Targets . | . . . Shots Hit Robots 70 | . 39 31 Core Hits 33 | . 19 14 Critical Kills 1 | . . 1 Critical Parts Destroyed . | . . . Critical Strikes 1 | . . 1 Meltdown 1 | . . 1 Melee Attacks . | . . . Impact . | . . . Slashing . | . . . Piercing . | . . . Sneak Attacks . | . . . Combat Hostiles . | . . . Follow-up Attacks . | . . . Damage Inflicted 1429 | . 533 896 Guns 407 | . 407 . Cannons 542 | . 121 421 Explosions 475 | . . 475 Melee . | . . . Ramming 5 | . 5 . Kinetic 628 | . 153 475 Thermal 744 | . 323 421 Explosive . | . . . Electromagnetic 52 | . 52 . Impact . | . . . Slashing . | . . . Piercing . | . . . Highest Corruption 5 | . 5 5 Average Corruption 5 | . 5 5 Corruption Purged . | . . . Corruption Blocked . | . . . Effects 21 | . 6 15 Message Errors 4 | . . 4 Matter Fused 6 | . 1 5 Heat Flow Errors 3 | . 1 2 Energy Discharges 1 | . . 1 Data Loss (minor) 3 | . 1 2 Data Loss (major) 1 | . 1 . Misfires 2 | . 1 1 Alerts 1 | . 1 . Overload Shots . | . . . Overflow Damage . | . . . Projectiles . | . . . Explosions . | . . . Melee . | . . . Knockbacks . | . . . Impact . | . . . Kinetic . | . . . Secondary . | . . . Self-Inflicted Damage 129 | . 2 127 Shots 6 | . . 6 Rammed 2 | . 2 . Targets Rammed 2 | . 2 . Kicked . | . . . Crushed . | . . . Highest Temperature 261 | . 261 196 Average Temperature 40 | . 43 25 Received Heat Transfer 423 | . 243 180 Siege Activations . | . . . Martial Activations . | . . . Shielding Activations . | . . . Robots Disrupted . | . . . Combat Hostiles . | . . . Robots Corrupted . | . . . Combat Hostiles . | . . . Parts Fried . | . . . Impact Corruptions . | . . . Robots Melted 1 | . . 1 Combat Hostiles 1 | . . 1 Parts Melted 7 | . 1 6 Heat Transferred 1597 | . 709 888 Parts Sabotaged . | . . . Parts Stolen . | . . . Parts Stripped . | . . . Power Chain Reactions . | . . . Alert | -11 -10 -10 ------- Run | Yrd Mat Sub Maximum Alert Level . | . . . Low Security (%) 100 | 100 100 . Level 1 . | . . . Level 2 . | . . . Level 3 . | . . . Level 4 . | . . . Level 5 . | . . . High Security . | . . . Max Security . | . . . Peak Influence 55 | . 55 . Initial . | . . . Average 14 | . 16 . Influence Increases 165 | . 165 . Destroy 0b10 Robot/C 100 | . 100 . Destroy 0b10 Robot/NC 25 | . 25 . Destroy Leader 40 | . 40 . Influence Decreases 165 | . 165 . Time Decay 135 | . 135 . Lost Part 30 | . 30 . Squads Dispatched 3 | . 3 . Investigation . | . . . Extermination . | . . . Reinforcement 3 | . 3 . Assault . | . . . Garrison . | . . . Intercept . | . . . Searches Triggered . | . . . Construction Impeded . | . . . Haulers Reinforced . | . . . Active Scanning Responses . | . . . Cargo Convoy Interrupts . | . . . Stealth | -11 -10 -10 --------- Run | Yrd Mat Sub Distress Signals . | . . . Communications Jammed . | . . . Distress Signals . | . . . Times Spotted 17 | . 9 8 Peak Tracking Total 2 | . 2 2 Tactical Retreats . | . . . Traps | -11 -10 -10 ------- Run | Yrd Mat Sub Traps Triggered 2 | . 2 . Indirectly . | . . . Trap Hack Attempts . | . . . Triggered . | . . . Disarmed . | . . . Reprogrammed . | . . . Reused . | . . . Traps Extracted . | . . . Installed . | . . . Triggered . | . . . Machines | -11 -10 -10 ---------- Run | Yrd Mat Sub Machines Disabled . | . . . Max in Single Turn . | . . . Machines Repaired . | . . . Machines Dismantled . | . . . Machines Sabotaged . | . . . Overloaded Fab Kills . | . . . Hacking | -11 -10 -10 --------- Run | Yrd Mat Sub Machines Accessed . | . . . Terminals . | . . . Fabricators . | . . . Repair Stations . | . . . Recycling Units . | . . . Scanalyzers . | . . . Garrison Access . | . . . Total Hacks . | . . . Successful . | . . . Failed . | . . . Catastrophic . | . . . Database Lockouts . | . . . Manual . | . . . Terminals . | . . . Fabricators . | . . . Repair Stations . | . . . Recycling Units . | . . . Scanalyzers . | . . . Garrison Access . | . . . Terminal Hacks . | . . . Fabricator Hacks . | . . . Repair Station Hacks . | . . . Recycling Unit Hacks . | . . . Scanalyzer . | . . . Garrison Access Hacks . | . . . Unauthorized Hacks . | . . . Terminals . | . . . Fabricators . | . . . Repair Stations . | . . . Recycling Units . | . . . Scanalyzers . | . . . Garrison Access . | . . . Data Cores Recovered . | . . . Used . | . . . Hacking Detections . | . . . Full Trace Events . | . . . Feedback Events . | . . . Feedback Blocked . | . . . Robot Schematics Acquired . | . . . Robots Built . | . . . Authchips . | . . . Time . | . . . Total Robot Build Rating . | . . . Part Schematics Acquired . | . . . Parts Built . | . . . Authchips . | . . . Time . | . . . Total Part Build Rating . | . . . Part Studies Acquired . | . . . Parts Repaired . | . . . Time . | . . . Parts Recycled . | . . . Recycled Matter . | . . . Retrieved Matter . | . . . Retrieved Components . | . . . Parts Scanalyzed . | . . . Part Schematics Acquired . | . . . Parts Damaged . | . . . Bothacking | -11 -10 -10 ------------ Run | Yrd Mat Sub Used RIF Installer . | . . . Robots Hacked . | . . . Non-combat . | . . . Combat . | . . . Robot Hacks Applied . | . . . Relay Couplers Released . | . . . Fabnet Peak Effective % . | . . . Robots Rewired . | . . . Allies Hacked . | . . . Hacks Repelled . | . . . Allies | -11 -10 -10 -------- Run | Yrd Mat Sub Total Allies . | . . . Largest Group . | . . . Highest-Rated Group . | . . . Highest-Rated Ally . | . . . Total Orders . | . . . Ally Attacks . | . . . Total Damage . | . . . Kills . | . . . Allies Corrupted . | . . . Allies Melted . | . . . Intel | -11 -10 -10 ------- Run | Yrd Mat Sub Active Infowar (turns) . | . . . Robot Analysis Total . | . . . Derelict Logs Recovered . | . . . Drone Launches . | . . . Drone Recoveries . | . . . Exploration | -11 -10 -10 ------------- Run | Yrd Mat Sub Turns Passed 1130 | 56 438 636 Spaces Moved 715 | 48 223 444 Core 18 | 18 . . Treads . | . . . Legs 528 | . 84 444 Wheels 169 | 30 139 . Hover . | . . . Flight . | . . . Fastest Speed 50 | 50 100 120 Average Speed 126 | 87 133 126 Slowest Speed 190 | 150 190 190 Overloaded Moves . | . . . Propulsion Burnouts . | . . . Robots Hopped . | . . . Potential Cave-ins . | . . . Cave-ins Triggered . | . . . Exploration Rate (%) 25 | 4 38 35 Regions Visited 2 Branch Regions 1 Pre-discovered Areas . | . . . Known Exits Taken 1 | . 1 . Unknown Exits Taken 1 | 1 . . Scrap Searched . | . . . Spaces Dug . | . . . Terrain Destroyed 93 | . . 93 Melee . | . . . Projectile . | . . . AOE 93 | . . 93 Terrain Rammed . | . . . Walls Destroyed . | . . . Machines Disabled . | . . . Actions | -11 -10 -10 --------- Run | Yrd Mat Sub Total 835 | 60 294 481 Wait 6 | . 6 . Move 713 | 47 222 444 Hop . | . . . Pick Up 22 | 7 11 4 Fast Attach 9 | 3 5 1 Attach 10 | 3 5 2 Detach . | . . . Swap 4 | . 1 3 Drop 8 | . 3 5 Fire 61 | . 39 22 Melee . | . . . Ram 2 | . 2 . Kick . | . . . Crush . | . . . Escape Stasis . | . . . Rewire . | . . . Trap . | . . . Miscellaneous . | . . . Route ------- -11/Scrapyard -10/Materials (discovered 2 exits: [*Mat] / *Sub) -10/Subcaves (discovered 2 exits: *Mat x2) History --------- Turn | Location | Event 28 | -11/Scrapyard | Discovered new exit (range 16) 57 | -11/Scrapyard | Entered Materials 193 | -10/Materials | Core integrity fell below 50% 222 | -10/Materials | Discovered new exit (range 15) 356 | -10/Materials | Build established: Mutant 484 | -10/Materials | Discovered new exit (range 4) 493 | -10/Materials | Identified exit to Subcaves 495 | -10/Materials | Entered Subcaves 496 | -10/Subcaves | Approached by a straggling Scientist 803 | -10/Subcaves | Discovered new exit (range 10) 820 | -10/Subcaves | Identified exit to Materials 975 | -10/Subcaves | Shifting Twisted Machinery released Sub. Power Source 980 | -10/Subcaves | Shifting Twisted Machinery released Scrap Shield 1067 | -10/Subcaves | Discovered exit to Materials (range 13) 1103 | -10/Subcaves | Shifting Twisted Machinery released Scrap Shield 1105 | -10/Subcaves | Shifting Twisted Machinery released Scrap Shield 1123 | -10/Subcaves | Core integrity fell below 20% 1131 | -10/Subcaves | Destroyed by 2O-SA5(R) with Subdweller Beam Cannon Last Messages --------------- Machinery. Scrap Shield falls loose from the Twisted Machinery. 00986_ Dropped Lgt. Ion Engine. 01026_ System corrupted: Component data lost. 01042_ K6-L01(R): "OHNO!" 01050_ Dropped Aluminum Leg. 01061_ K6-L01(R) destroyed. 01067_ EXIT=FOUND: MATERIALS 01068_ Acquired 23 matter. 01075_ Acquired 11 matter. 01090_ Dropped Lgt. Assault Rifle. 01090_ Acquired Battle Rifle. Scrap Shield falls loose from the Twisted Machinery. 01106_ System corrupted: Energy discharge (-74). 01121_ 2O-SA5(R): "HIDIE!" 01123_ 7L-2NV(R) destroyed. 01127_ Sub. Shrapnel Launcher destroyed. 01127_ Mak. Leg destroyed. Map ----- +----------------------------------------------------+ | ?????????????????????????????????????????????????? | | ?????????????????????????????????????????????????? | | ?????????????????????????????????????????????????? | | ?????????????????????????????????????????????????? | | ?????????????????????????????????????????????????? | | ?????????????????????????????????????????????????? | | ????????????????????????????? ??????????????????? | | ???????????????????????????? ?#?????????????????? | | ???????????????????????????? ? ??????????????????? | | ??????????????????????????? ? ???????????????????? | | ?????????????????????????? # ???????????????????? | | ???????????????????"""??? #????????????????????? | | ????????????????##?#"#?? ????????????????????? | | ?????????????? " ##"#?& """?????????????????????? | | ?????????????? ;# = #??????????????????????? | | ?????????????#""" !&"????????????????????????? | | ?????????????# ??????????????????????????? | | ?????????????# ; ##??###???????????????????? | | ??????????????# ##;;##??????????????????? | | ?????????????## ;; ;#??????????????????? | | ?????????????# ; ; ##?????????????????? | | ????????????? ;; % R ###???????????????? | | ????????????? ""# * [ #???????????????? | | ???????????? "" #; ;;# ##???????????????? | | ?????????? ? " ;;#???????????????????? | | ????????# ""& ;; ;@ ###???????????????????? | | ????????# " ## #" #???????????????????? | | ????????# ??#" #### "# ##??????????????????? | | ????????# ??# " ##" "###????????????????? | | ????????# ??#" " " ##???????????????? | | ???????## ??# ! #???????????????? | | ???????# ###| < ## #??????????????? | | ???????# #" #?###??????????????? | | ????????# " #??????????????????? | | ?????????# "#### #??????????????????? | | ????????## #??? ##??????????????????? | | ????????# " ##?? ##???????????????????? | | ????????## #### #??##????????????????????? | | ????????# ?# ##????????????????????????? | | ????????# ## #?????????????????????????? | | ????????# # #?????????????????????????? | | ???????## "# ##?????????????????????????? | | ???????# #??????????????????????????? | | ???????# ##??????????????????????????? | | ???????## #???????????????????????????? | | ????????# #???????????????????????????? | | ????????## #???????????????????????????? | | ????????## ##???????????????????????????? | | ????????# ####????????????????????????????? | | ????????# #???????????????????????????????? | +----------------------------------------------------+ Best States ------------- Heat Dissipation 25 Energy Generation 15 Energy Capacity 250 Matter Stores 300 Matter Capacity 300 Sight Range 16 Terrain Scan Density 10 Evasion (%) 55 Item Schematics ----------------- None Robot Schematics ------------------ None Fabricated ------------ Nothing Repaired ---------- Nothing Studied --------- None Alien Tech Used ----------------- None Achievements -------------- None Challenges ------------ None Game ------ Seed HeartDisintegrationGenerator Manual? 0 Play Time 00:08:54 Cumulative 50.2 hours Start 2026.02.11 @ 14:20:37 End 2026.02.11 @ 14:29:10 Sessions 1 Manual Loads 0 Difficulty Rogue Special Mode None Game No. 64 Rogue 64 Adventurer 0 Explorer 0 Win Type - Total 1 Types 0/0/1/0/0/0/0/0/0/0 Lore% 19 Gallery% 37 Achievement% 26 Wizard Run 0 Options --------- Layout 1 ASCII 0 Keyboard 0 Movement Mouse Keybinds 0 Fullscreen 2 Font 32/SmallcapsGlow Map View 50x35 Zoom Use 0% Tactical HUD 1 Map Filters NONE Filters NONE Steam 1 RUN: 054cbe01-9440-4e58-9973-13a0772a94b9